Cogmind - Beta 17 @@@ ROGUE MODE // 2026.08.08 @ 22:51:10 Player: TaxEvasionist Result: Self-destructed Performance ------------- Evolutions (1) 500 Regions Visited (2) 400 Robots Destroyed (21) 105 Value Destroyed (499) 499 Prototype IDs (0) 0 Alien Tech Used (0) 0 Bonus (0) 0 TOTAL SCORE: 1504 Bonus ------- None Cogmind --------- Core Integrity 353/400 Matter 268/300 Energy 265/265 System Corruption 0% Temperature Cool (0) Movement Walking (120) Location -9/Materials Parts ------- > --- POWER (1) -------- Improved Ion Engine > --- PROPULSION (3) --- Aluminum Leg Aluminum Leg Aluminum Leg > --- UTILITY (3) ------ Medium Storage Unit Terrain Scan Processor Improved Propulsion Shielding > --- WEAPON (2) ------- High-powered Shotgun High-powered Shotgun > --- INVENTORY (10) --- Ion Engine Ion Engine Aluminum Leg Aluminum Leg Heat Sink Medium Storage Unit EM Pulse Gun Small Laser Beam Rifle Light Cannon Peak State ------------ > --- POWER ------------ Improved Ion Engine > --- PROPULSION ------- Aluminum Leg Aluminum Leg Aluminum Leg > --- UTILITY ---------- Medium Storage Unit Terrain Scan Processor Improved Propulsion Shielding > --- WEAPON ----------- High-powered Shotgun High-powered Shotgun > --- INVENTORY -------- Ion Engine Ion Engine Aluminum Leg Aluminum Leg Heat Sink Medium Storage Unit EM Pulse Gun Small Laser Beam Rifle Light Cannon [Rating: 18] Favorites ----------- Power Light Ion Engine Engine Light Ion Engine Propulsion Aluminum Leg Treads Light Treads Leg Aluminum Leg Utility Medium Storage Unit Device Seismic Detector Storage Medium Storage Unit Processor Terrain Scan Processor Protection Light Armor Plating Weapon Assault Rifle Energy Gun EM Pulse Gun Ballistic Gun Assault Rifle Build | -11 -10 -9 ------- Run | Yrd Mat Mat Slots Evolved 2 | . . 2 Power . | . . . Propulsion 1 | . . 1 Utility 1 | . . 1 Weapon . | . . . Parts Attached 22 | 6 2 14 Power 2 | 1 . 1 Engine 2 | 1 . 1 Core . | . . . Reactor . | . . . Propulsion 8 | 2 . 6 Treads 1 | . . 1 Leg 7 | 2 . 5 Wheel . | . . . Hover . | . . . Flight . | . . . Utility 7 | 1 2 4 Device 1 | . 1 . Storage 2 | 1 1 . Processor 1 | . . 1 Hackware . | . . . Protection 3 | . . 3 Artifact . | . . . Weapon 5 | 2 . 3 Energy Gun 1 | 1 . . Energy Cannon . | . . . Ballistic Gun 4 | 1 . 3 Ballistic Cannon . | . . . Launcher . | . . . Special Weapon . | . . . Impact Weapon . | . . . Slashing Weapon . | . . . Piercing Weapon . | . . . Special Melee Weapon . | . . . Unidentified Prototypes . | . . . Parts Lost 2 | . . 2 Power . | . . . Propulsion 1 | . . 1 Utility 1 | . . 1 Weapon . | . . . Highest Loss Streak 1 | . . 1 To Critical Strikes . | . . . Average Backups 8 | 3 7 9 Power 1 | . 1 2 Propulsion 2 | 2 3 2 Utility 1 | . 1 2 Weapon 2 | . 1 3 Tool/Special . | . . . Unused Backups 17 | . 3 14 Power 4 | . . 4 Propulsion 5 | . 2 3 Utility 4 | . 1 3 Weapon 4 | . . 4 Tool/Special . | . . . Average Slot Usage (%) 97 | . 94 98 Engine 12 | . 14 11 Treads 2 | . . 3 Leg 28 | . 28 29 Device 6 | . 9 5 Storage 12 | . 14 11 Processor 3 | . . 5 Protection 6 | . . 10 Energy Gun 8 | . 14 4 Ballistic Gun 15 | . 14 17 Peak Build Rating 18 | 6 8 18 Average Rating 9 | 4 6 12 On Entrance 4 | . 6 8 Avg Prop Armor Cover (%) 7 | . . 7 Naked Turns . | . . . Heaviest Build 26 | 12 18 26 Greatest Support 30 | 20 20 30 Greatest Overweight (x) 1 | 1 . 1 Average Overweight (x) . | . . . Largest Inventory Capacity 10 | 8 10 10 Average Capacity 9 | 7 8 10 Most Carried 10 | 7 10 10 Average Carried 8 | 4 8 9 Final Capacity 10 | 8 10 10 Final Carried 10 | 6 10 10 Class Distribution -------------------- 94% | Mutant 5% | Scavenger-Mutant Dominant Class ---------------- Mutant | -10/Materials Mutant | -9/Materials Resources | -11 -10 -9 ----------- Run | Yrd Mat Mat Matter Collected 714 | 214 50 450 Remotely . | . . . Salvage Created 840 | . 50 790 Parts 45 | . 3 42 Haulers Intercepted . | . . . Recyclers Shooed 1 | . . 1 Parts Field Recycled . | . . . Retrieved Matter . | . . . Parts Self-Destructed . | . . . Prevented . | . . . Parts Restored . | . . . Kills | -11 -10 -9 ------- Run | Yrd Mat Mat Combat Hostiles Destroyed 18 | . 1 17 Guns 18 | . 1 17 Classes Destroyed 4 | . 1 3 Recycler 3 | . . 3 Swarmer 7 | . . 7 Grunt 10 | . 1 9 Sentry 1 | . . 1 Best Kill Streak 6 | . 1 6 Combat Bots Only 6 | . 1 6 Max Kills in Single Turn 1 | . 1 1 Gunslinging . | . . . Exploded . | . . . Melee . | . . . Uniques/NPCs Destroyed . | . . . Combat | -11 -10 -9 -------- Run | Yrd Mat Mat Hostile Shots Fired 96 | . 6 90 Missed 32 | . 4 28 Hits 64 | . 2 62 Projectile 64 | . 2 62 AOE 1 | . . 1 Critical Strikes 4 | . . 4 Damage Taken 753 | . 23 730 Core 59 | . 12 47 Absorbed by Shields . | . . . Redirected to Shielding 16 | . . 16 Regen/Repaired (Parts) 19 | . . 19 Core Remaining (%) 97 | 100 95 . Volleys Fired 55 | . 5 50 Largest 2 | . 2 2 Hottest 60 | . 60 60 Shots Fired 110 | . 10 100 Gun 110 | . 10 100 Cannon . | . . . Launcher . | . . . Special . | . . . Kinetic 97 | . 5 92 Thermal . | . . . Explosive . | . . . Electromagnetic 13 | . 5 8 Robot Hit Streak 14 | . 4 14 Robot Miss Streak 3 | . 1 3 Penetration Max . | . . . Secondary Targets 1 | . . 1 Max Gunslinging Chain 1 | . . 1 Shots Hit Robots 78 | . 7 71 Core Hits 33 | . 3 30 Critical Kills . | . . . Critical Parts Destroyed . | . . . Critical Strikes 1 | . . 1 Corrupt 1 | . . 1 Melee Attacks . | . . . Impact . | . . . Slashing . | . . . Piercing . | . . . Sneak Attacks . | . . . Combat Hostiles . | . . . Follow-up Attacks . | . . . Damage Inflicted 1167 | . 90 1077 Guns 1167 | . 90 1077 Cannons . | . . . Explosions . | . . . Melee . | . . . Ramming . | . . . Kinetic 1007 | . 35 972 Thermal . | . . . Explosive . | . . . Electromagnetic 160 | . 55 105 Impact . | . . . Slashing . | . . . Piercing . | . . . Highest Corruption 2 | . 2 . Average Corruption 2 | . 2 . Corruption Purged . | . . . Corruption Blocked . | . . . Effects 1 | . 1 . Message Errors 1 | . 1 . Overload Shots . | . . . Overflow Damage . | . . . Projectiles . | . . . Explosions . | . . . Melee . | . . . Knockbacks . | . . . Impact . | . . . Kinetic . | . . . Secondary . | . . . Self-Inflicted Damage . | . . . Shots . | . . . Rammed . | . . . Targets Rammed . | . . . Kicked . | . . . Crushed . | . . . Highest Temperature 31 | . 6 31 Average Temperature 10 | . 6 11 Received Heat Transfer 381 | . 12 369 Siege Activations . | . . . Martial Activations . | . . . Shielding Activations . | . . . Robots Disrupted . | . . . Combat Hostiles . | . . . Robots Corrupted . | . . . Combat Hostiles . | . . . Parts Fried . | . . . Impact Corruptions . | . . . Robots Melted . | . . . Combat Hostiles . | . . . Parts Melted . | . . . Heat Transferred . | . . . Parts Sabotaged . | . . . Parts Stolen . | . . . Parts Stripped . | . . . Power Chain Reactions . | . . . Alert | -11 -10 -9 ------- Run | Yrd Mat Mat Maximum Alert Level 1 | . . 1 Low Security (%) 96 | 100 100 93 Level 1 3 | . . 6 Level 2 . | . . . Level 3 . | . . . Level 4 . | . . . Level 5 . | . . . High Security . | . . . Max Security . | . . . Peak Influence 230 | . 20 230 Initial . | . . . Average 28 | . 1 48 Influence Increases 455 | . 20 435 Destroy 0b10 Robot/C 360 | . 20 340 Destroy 0b10 Robot/NC 15 | . . 15 Destroy Leader 60 | . . 60 Successful Hack 1 | . . 1 Destroy Structure 4 | . . 4 Lose Combat Pursuer 15 | . . 15 Influence Decreases 227 | . 20 207 Time Decay 207 | . 20 187 Lost Part 20 | . . 20 Squads Dispatched 2 | . 1 1 Investigation 1 | . . 1 Extermination . | . . . Reinforcement 1 | . 1 . Assault . | . . . Garrison . | . . . Intercept . | . . . Searches Triggered . | . . . Construction Impeded . | . . . Haulers Reinforced . | . . . Active Scanning Responses . | . . . Cargo Convoy Interrupts . | . . . Stealth | -11 -10 -9 --------- Run | Yrd Mat Mat Distress Signals 2 | . . 2 Communications Jammed . | . . . Distress Signals . | . . . Times Spotted 27 | . 4 23 Peak Tracking Total 6 | . 2 6 Tactical Retreats 1 | . . 1 Traps | -11 -10 -9 ------- Run | Yrd Mat Mat Traps Triggered 1 | . 1 . Indirectly . | . . . Trap Hack Attempts . | . . . Triggered . | . . . Disarmed . | . . . Reprogrammed . | . . . Reused . | . . . Traps Extracted . | . . . Installed . | . . . Triggered . | . . . Machines | -11 -10 -9 ---------- Run | Yrd Mat Mat Machines Disabled . | . . . Max in Single Turn . | . . . Machines Repaired . | . . . Machines Dismantled . | . . . Machines Sabotaged . | . . . Overloaded Fab Kills . | . . . Hacking | -11 -10 -9 --------- Run | Yrd Mat Mat Machines Accessed 6 | . 3 3 Terminals 4 | . 2 2 Fabricators . | . . . Repair Stations 1 | . . 1 Recycling Units 1 | . 1 . Scanalyzers . | . . . Garrison Access . | . . . Total Hacks 13 | . 5 8 Successful 9 | . 3 6 Failed 4 | . 2 2 Catastrophic . | . . . Database Lockouts . | . . . Manual . | . . . Terminals 9 | . 4 5 Fabricators . | . . . Repair Stations 3 | . . 3 Recycling Units 1 | . 1 . Scanalyzers . | . . . Garrison Access . | . . . Terminal Hacks 7 | . 3 4 Record 6 | . 2 4 Robot Analysis 1 | . 1 . Fabricator Hacks . | . . . Repair Station Hacks 2 | . . 2 Scan Component 1 | . . 1 Repair 1 | . . 1 Recycling Unit Hacks . | . . . Scanalyzer . | . . . Garrison Access Hacks . | . . . Unauthorized Hacks . | . . . Terminals . | . . . Fabricators . | . . . Repair Stations . | . . . Recycling Units . | . . . Scanalyzers . | . . . Garrison Access . | . . . Data Cores Recovered . | . . . Used . | . . . Hacking Detections 4 | . 2 2 Full Trace Events 2 | . 1 1 Feedback Events . | . . . Feedback Blocked . | . . . Robot Schematics Acquired . | . . . Robots Built . | . . . Authchips . | . . . Time . | . . . Total Robot Build Rating . | . . . Part Schematics Acquired . | . . . Parts Built . | . . . Authchips . | . . . Time . | . . . Total Part Build Rating . | . . . Part Studies Acquired . | . . . Parts Repaired 1 | . . 1 Time 36 | . . 36 Parts Recycled . | . . . Recycled Matter . | . . . Retrieved Matter . | . . . Retrieved Components . | . . . Parts Scanalyzed . | . . . Part Schematics Acquired . | . . . Parts Damaged . | . . . Bothacking | -11 -10 -9 ------------ Run | Yrd Mat Mat Used RIF Installer . | . . . Robots Hacked . | . . . Non-combat . | . . . Combat . | . . . Robot Hacks Applied . | . . . Relay Couplers Released . | . . . Fabnet Peak Effective % . | . . . Robots Rewired . | . . . Allies Hacked . | . . . Hacks Repelled . | . . . Allies | -11 -10 -9 -------- Run | Yrd Mat Mat Total Allies . | . . . Largest Group . | . . . Highest-Rated Group . | . . . Highest-Rated Ally . | . . . Total Orders . | . . . Ally Attacks . | . . . Total Damage . | . . . Kills . | . . . Allies Corrupted . | . . . Allies Melted . | . . . Intel | -11 -10 -9 ------- Run | Yrd Mat Mat Active Infowar (turns) 450 | . 206 244 Seismic 450 | . 206 244 Robot Analysis Total 1 | . 1 . Derelict Logs Recovered . | . . . Drone Launches . | . . . Drone Recoveries . | . . . Exploration | -11 -10 -9 ------------- Run | Yrd Mat Mat Turns Passed 916 | 72 311 533 Spaces Moved 482 | 58 220 204 Core 23 | 23 . . Treads . | . . . Legs 459 | 35 220 204 Wheels . | . . . Hover . | . . . Flight . | . . . Fastest Speed 50 | 50 120 120 Average Speed 124 | 95 120 137 Slowest Speed 190 | 120 120 190 Overloaded Moves . | . . . Propulsion Burnouts . | . . . Robots Hopped . | . . . Potential Cave-ins . | . . . Cave-ins Triggered . | . . . Exploration Rate (%) 19 | 3 44 11 Regions Visited 2 Branch Regions . Pre-discovered Areas . | . . . Known Exits Taken . | . . . Unknown Exits Taken 2 | 1 1 . Scrap Searched . | . . . Spaces Dug . | . . . Terrain Destroyed . | . . . Melee . | . . . Projectile . | . . . AOE . | . . . Terrain Rammed . | . . . Walls Destroyed . | . . . Machines Disabled . | . . . Actions | -11 -10 -9 --------- Run | Yrd Mat Mat Total 690 | 74 258 358 Wait 83 | . 20 63 Move 480 | 57 219 204 Hop . | . . . Pick Up 31 | 11 8 12 Fast Attach 7 | 1 . 6 Attach 9 | 5 1 3 Detach . | . . . Swap 6 | . 1 5 Drop 19 | . 4 15 Fire 55 | . 5 50 Melee . | . . . Ram . | . . . Kick . | . . . Crush . | . . . Escape Stasis . | . . . Rewire . | . . . Trap . | . . . Miscellaneous . | . . . Route ------- -11/Scrapyard -10/Materials (discovered 2 exits: *Mat x2) -9/Materials History --------- Turn | Location | Event 5 | -11/Scrapyard | Discovered new exit (range 15) 73 | -11/Scrapyard | Entered Materials 188 | -10/Materials | Discovered new exit (range 3) 287 | -10/Materials | Discovered new exit (range 15) 312 | -10/Materials | Build established: Mutant 384 | -10/Materials | Entered another Materials area 384 | -9/Materials | Evolved 2 slots: Propulsion x1, Utility x1 507 | -9/Materials | Repaired Corrupted Aluminum Leg 917 | -9/Materials | Self-destructed Last Messages --------------- 00838_ G-34 Mercenary destroyed. 00841_ U-05 Engineer builds a Door. 00843_ Acquired 16 matter. 00849_ Acquired Aluminum Leg. 00852_ Dropped Aluminum Leg. 00855_ W-16 Scout sends out distress signal. 00860_ Dropped Assault Rifle. 00861_ Acquired Hpw. Shotgun. 00865_ Dropped Lgt. Armor Plating. 00865_ Acquired Imp. Propulsion Shielding. 00868_ G-34 Mercenary destroyed. 00881_ S-10 Pest destroyed. 00890_ Acquired 8 matter. 00891_ Acquired 81 matter. 00894_ Acquired 70 matter. 00898_ R-06 Scavenger collects Sml. Laser. 00902_ R-06 Scavenger collects Aluminum Leg. 00905_ R-06 Scavenger destroyed. 00906_ R-06 Scavenger collects Ion Engine. 00910_ U-05 Engineer builds a Door. Map ----- +----------------------------------------------------+ | ?????????????????????????????????????????????????? | | ?????????????????????????????????????????????????? | | ?????????????????????????????????????????????????? | | ?????????????????????????????????????????????????? | | ?????????????????????????????????????????????????? | | ?????????????????????????????????????????????????? | | ?????????????????????????????????????????????????? | | ?????????????????????????????????????????????????? | | ?????????????????????????????????????????????????? | | ?????????????????????????????????????????????????? | | ????????????????????????? ???????????????????????? | | ????????????????????????? ???????????????????????? | | ????????????????????????? ???????????????????????? | | ????????????????????????? ???????????????????????? | | ???????????????????????##+##?????????????????????? | | ???????????????????????# u?????????????????????? | | ???????????????????????# w#?????????????????????? | | ???????????????????????#w #?????????????????????? | | ???????????????????????+ #?????????????????????? | | ???????????????????????# #?????????????????????? | | ???????????????????????# #?????????????????????? | | ????????????????#+###### #?????????????????????? | | ???????????????## #?????????????????????? | | ??????????????? %#####?????????????????? | | ????????????????# ! !!#?????????????????? | | ???????????????????????# @ !! #?????????????????? | | ???????????????????????#%! [[#?????????????????? | | ???????????????????????#! [[ #?????????????????? | | ???????????????????????# //#?????????????????? | | ????????????????########= //#?????????????????? | | ????????????????# """[!#%*a#####?????????????????? | | ????????????????# "T"*=#%%*#?????????????????????? | | ????????????????# *! +%==#?????????????????????? | | ????????????????# * ! #==*#?????????????######### | | ????????????????# !!!#%! #?????????????# T | | ????????????????# ! # #??############ """ | | ??????????????########=# #??# **+ # """ | | ?????????????## #### #??# ! = ##### """ | | ???????????### ### #??# " " #???# | | ???????????# # # #??# "R" #???# | | ???????????## # #??# """ #???# | | ???????????# # #??# #???# | | ??????????## !# #######+###########+### | | ??????????# [=# | | ??????????# *%+ | | ??????????# %# | | ??????????# ########################### | | ??????????## #?????????????????????????? | | ???????????# #?????????????????????????? | | ???????????#### ## ####?????????????????????????? | +----------------------------------------------------+ Best States ------------- Heat Dissipation 28 Energy Generation 12 Energy Capacity 265 Matter Stores 300 Matter Capacity 300 Sight Range 16 Terrain Scan Density 85 Armor Coverage 150 Propulsion Shielding 66 Evasion (%) 55 Item Schematics ----------------- None Robot Schematics ------------------ None Fabricated ------------ Nothing Repaired ---------- Aluminum Leg | 78% | -9/Materials | Corrupted Studied --------- None Alien Tech Used ----------------- None Achievements -------------- I Have A Map? Organ Harvest Challenges ------------ None Game ------ Seed PlasmaWardroneCompactor Manual? 0 Play Time 00:17:35 Cumulative 13.5 hours Start 2026.08.08 @ 22:32:05 End 2026.08.08 @ 22:51:10 Sessions 1 Manual Loads 0 Difficulty Rogue Special Mode None Game No. 27 Rogue 25 Adventurer 0 Explorer 2 Win Type - Total 0 Types 0/0/0/0/0/0/0/0/0/0 Lore% 8 Gallery% 17 Achievement% 12 Wizard Run 0 Options --------- Layout 1 ASCII 1 Keyboard 0 Movement Mouse Keybinds 0 Fullscreen 1 Font 24/Smallcaps Map View 50x35 Zoom Use 0% Tactical HUD 1 Map Filters NONE Filters NONE Steam 1 RUN: 07e4dbc9-c413-474f-990c-d144e426127b